bitfinex/quotes_ETHUSD_20251126
["timestamp","ask_amount","ask_price","bid_price","bid_amount"]
[1764119208595,0.92820001,2956.7,2956.6,3.38226341]
[1764119209313,0.92820001,2956.7,2956.3,11.278918]
[1764119209486,0.4634,2956.6,2956.3,11.278918]
[1764119209804,0.4648,2956.4,2956.3,4.50579474]
[1764119210384,0.9215,2956.4,2956.3,4.50579474]
[1764119212102,0.4648,2956.4,2956.3,4.50579474]
[1764119212303,0.45670001,2956.7,2956.3,11.271008]
[1764119213001,0.4691,2956.4,2956.3,4.50579474]
[1764119214609,0.9258,2956.4,2956.3,4.50579474]
[1764119221102,0.9258,2956.4,2956.3,4.10029074]
[1764119224208,0.9258,2956.4,2956.3,4.10129074]
[1764119224405,0.9278,2956.4,2956.3,4.10129074]
[1764119235139,0.9278,2956.4,2956.3,3.37569663]
[1764119236185,16.89905232,2956.4,2956.0,0.001]
[1764119236337,3.8052279,2956.1,2955.8,0.001]
[1764119236671,0.6227,2955.9,2955.7,0.001]
[1764119236836,0.4638,2955.8,2955.7,0.001]
[1764119237036,0.9354,2955.8,2955.7,0.001]
[1764119241050,0.4638,2955.8,2955.7,0.001]
[1764119241567,0.6788,2955.8,2955.7,0.001]
[1764119241989,1.1769,2955.8,2955.7,0.001]
[1764119242954,0.1953,2956.2,2955.7,0.2061]
[1764119243296,0.215,2956.2,2955.8,0.2051]
[1764119243795,0.215,2956.3,2955.8,0.2051]
[1764119244163,0.4981,2956.2,2955.8,0.2051]
[1764119244493,0.4981,2956.2,2955.7,0.001]
[1764119245199,0.4981,2956.2,2955.8,0.72559411]
[1764119246889,0.215,2956.3,2955.8,0.72559411]
[1764119247224,0.7131,2956.3,2955.8,0.72559411]
[1764119247421,0.7131,2956.3,2956.0,0.72559411]
[1764119247632,0.215,2956.3,2956.0,0.72559411]
[1764119247922,0.7131,2956.3,2956.0,0.72559411]
[1764119248723,0.4981,2956.3,2956.1,6.76567098]
[1764119249025,0.215,2956.3,2956.1,6.76567098]
[1764119251334,0.4718,2956.2,2955.9,0.72559411]
[1764119251625,0.215,2956.3,2955.9,0.72559411]
[1764119251791,0.215,2956.3,2956.1,0.2051]
[1764119252428,0.215,2956.3,2955.9,0.72559411]
[1764119252946,0.002,2956.4,2955.9,0.72559411]
[1764119253148,0.7151,2956.4,2956.1,0.72559411]
[1764119253550,0.4718,2956.2,2956.1,0.72559411]
[1764119254020,0.215,2956.3,2956.1,0.72559411]
[1764119254663,0.4718,2956.2,2956.1,0.72559411]
[1764119255655,0.4718,2956.2,2956.1,4.1084296]
[1764119255832,0.9699,2956.2,2956.1,4.1084296]
[1764119257252,0.002,2956.4,2956.1,7.69636509]
[1764119257463,0.217,2956.4,2956.1,7.69636509]
[1764119257634,0.5001,2956.4,2956.1,7.49126509]
[1764119257828,0.4718,2956.2,2956.1,4.1084296]
[1764119258224,0.9699,2956.2,2956.1,3.38283549]
[1764119259338,0.9699,2956.2,2955.8,0.72659411]
[1764119259535,0.4981,2956.1,2955.8,0.72659411]
[1764119260758,0.002,2956.2,2955.9,6.76612874]
[1764119260940,0.217,2956.2,2955.9,6.76612874]
[1764119261270,0.7151,2956.2,2955.9,6.76612874]
[1764119261470,0.4718,2956.0,2955.9,3.38306437]
[1764119262172,0.9699,2956.0,2955.9,3.38306437]
[1764119262472,0.4718,2956.0,2955.9,3.38306437]
[1764119262679,0.9699,2956.0,2955.9,3.38306437]
[1764119264969,0.9699,2956.0,2955.8,0.001]
[1764119265168,1.1652,2955.9,2955.8,0.001]
[1764119272458,4.82212928,2955.9,2955.8,0.001]
[1764119273375,4.50852393,2955.9,2955.8,0.001]
[1764119274686,14.22917328,2955.9,2955.8,0.001]
[1764119275565,8.34068828,2955.9,2955.8,0.001]
[1764119275887,10.81771128,2955.9,2955.8,0.001]
[1764119278101,10.81971128,2955.9,2955.8,0.001]
[1764119280968,7.43664691,2955.9,2955.8,0.001]
[1764119281595,1.1672,2955.9,2955.8,0.001]
[1764119281804,1.3822,2955.9,2955.8,0.001]
[1764119283212,4.72552393,2955.9,2955.8,0.001]
[1764119284216,0.8841,2955.9,2955.8,0.001]
[1764119284433,0.6691,2955.9,2955.8,0.001]
[1764119284635,0.217,2955.9,2955.8,0.2061]
[1764119285713,0.217,2955.9,2955.8,0.4112]
[1764119285912,0.217,2955.9,2955.8,3.58927883]
[1764119286085,0.217,2955.9,2955.8,3.38417883]
[1764119286405,0.217,2955.9,2955.8,3.58927883]
[1764119286585,0.217,2955.9,2955.8,3.79437883]
[1764119287025,0.217,2955.9,2955.8,3.58927883]
[1764119289431,0.217,2955.9,2955.8,0.2061]
[1764119289637,0.217,2955.9,2955.8,3.38417883]
[1764119289797,0.217,2955.9,2955.8,3.58927883]
[1764119296043,0.6696,2955.9,2955.8,3.38417883]
[1764119297013,0.217,2955.9,2955.8,3.58927883]
[1764119302560,0.217,2955.9,2955.8,3.79437883]
[1764119303065,0.217,2955.9,2955.8,3.58927883]
[1764119306281,0.002,2955.9,2955.8,4.92547694]
[1764119306842,0.002,2955.9,2955.8,4.95930872]
[1764119307264,0.002,2955.9,2955.8,4.92547694]
[1764119310381,0.002,2955.9,2955.8,4.51527694]
[1764119310673,0.002,2955.9,2955.8,4.10977294]
[1764119311287,0.002,2955.9,2955.8,4.31487294]
[1764119311674,0.002,2955.9,2955.8,4.51997294]
[1764119311856,0.002,2955.9,2955.8,4.31487294]
[1764119313383,0.002,2955.9,2955.8,4.51997294]
[1764119315177,0.002,2955.9,2955.8,4.10977294]
[1764119315178,0.4568,2955.9,2955.8,4.10977294]
[1764119315348,0.9202,2955.9,2955.8,4.10977294]
[1764119315548,1.1073,2955.9,2955.8,4.10977294]
[1764119315779,0.002,2955.9,2955.8,4.10977294]
[1764119316480,0.4568,2955.9,2955.8,4.10977294]
[1764119316662,0.9202,2955.9,2955.8,4.10977294]
[1764119318049,0.4568,2955.9,2955.8,4.10977294]
[1764119318248,0.002,2955.9,2955.8,4.10977294]
[1764119318450,0.002,2955.9,2955.8,4.31487294]
[1764119320480,0.002,2955.9,2955.8,4.10977294]
[1764119320654,0.9202,2955.9,2955.8,3.38417883]
[1764119321182,0.9202,2955.9,2955.8,0.001]
[1764119321477,1.95429437,2955.9,2955.7,0.001]
[1764119321681,1.95429437,2955.9,2955.4,0.001]
[1764119321682,0.4548,2955.7,2955.4,0.001]
[1764119321851,3.79812393,2955.5,2955.1,0.001]
[1764119322050,3.79812393,2955.3,2955.1,0.001]
[1764119322251,0.4548,2955.2,2955.1,0.001]
[1764119322580,0.9182,2955.2,2955.1,0.001]
[1764119327187,1.1322,2955.2,2955.1,0.001]
[1764119328364,0.9182,2955.2,2955.1,0.001]
[1764119328996,11.651764,2955.2,2954.8,0.001]
[1764119329193,0.5534,2954.9,2954.8,0.001]
[1764119329566,1.0168,2954.9,2954.8,0.001]
[1764119329967,1.2318,2954.9,2954.8,0.001]
[1764119331099,0.215,2954.9,2954.8,0.2141]
[1764119331288,3.34728174,2955.9,2954.8,0.4272]
[1764119331289,0.4977,2955.7,2954.8,0.4272]
[1764119331496,0.215,2955.6,2955.0,0.72559411]
[1764119332006,0.4977,2955.5,2955.0,0.72559411]
[1764119332801,0.4534,2955.1,2955.0,0.72559411]
[1764119333103,0.6684,2955.1,2955.0,0.72559411]
[1764119333600,1.1661,2955.1,2955.0,4.10968886]
[1764119334005,1.1661,2955.1,2954.9,3.38419421]
[1764119334205,0.4977,2955.0,2954.9,3.38419421]
[1764119334376,0.9511,2955.0,2954.9,3.38419421]
[1764119336016,0.9511,2955.0,2954.8,0.001]
[1764119336175,1.1472,2954.9,2954.8,0.001]
[1764119337509,0.6495,2954.9,2954.8,0.001]
[1764119337888,0.6495,2954.9,2954.8,3.38532381]
[1764119339099,1.1472,2954.9,2954.8,3.38532381]
[1764119339305,1.1472,2954.9,2954.8,0.001]
[1764119340694,1.3622,2954.9,2954.8,0.001]
[1764119342624,0.6734,2954.9,2954.8,0.001]
[1764119342791,0.215,2954.9,2954.8,0.001]
[1764119343193,0.215,2954.9,2954.8,0.2141]
[1764119343522,0.215,2954.9,2954.8,3.59842381]
[1764119344325,0.215,2954.9,2954.8,3.38532381]
[1764119344521,0.6734,2954.9,2954.8,3.38532381]
[1764119344721,0.215,2954.9,2954.8,3.59842381]
[1764119344937,0.215,2954.9,2954.8,4.32401792]
[1764119345224,0.215,2955.1,2954.8,11.09266554]
[1764119345422,0.215,2955.1,2955.0,0.2131]
[1764119346624,0.002,2955.6,2955.0,0.4262]
[1764119346925,0.215,2955.5,2955.1,0.113]
[1764119347226,0.215,2955.5,2954.8,10.87956554]
[1764119347524,0.215,2955.5,2954.8,11.09266554]
[1764119350047,0.002,2955.6,2955.4,0.2131]
[1764119350202,0.002,2955.6,2955.5,0.2131]
[1764119351429,0.002,2955.6,2955.5,0.831704]
[1764119351644,0.002,2955.6,2955.5,4.94082035]
[1764119355168,0.002,2955.6,2955.5,5.07636831]
[1764119355945,0.002,2955.6,2955.5,5.11020353]
[1764119363159,0.002,2956.2,2955.9,0.405504]
[1764119363330,0.002,2956.2,2956.1,0.618604]
[1764119363529,0.002,2956.2,2956.1,0.831704]
[1764119363846,0.002,2956.2,2956.1,0.96722348]
[1764119364474,0.002,2956.2,2956.1,5.07565308]
[1764119366960,0.002,2956.2,2956.1,4.86255308]
[1764119367276,0.002,2956.2,2956.1,5.07565308]
[1764119369280,0.002,2956.2,2956.1,4.86255308]
[1764119371366,0.002,2956.2,2956.1,5.07565308]
[1764119371571,0.002,2956.2,2956.1,4.86255308]
[1764119371771,0.002,2956.2,2956.1,5.07565308]
[1764119373169,0.002,2956.2,2956.1,4.86255308]
[1764119374053,0.002,2956.2,2956.1,5.07565308]
[1764119374257,0.002,2956.2,2956.1,4.9401336]
[1764119374577,0.002,2956.2,2956.1,4.97396195]
[1764119375180,0.002,2956.2,2956.1,5.07396195]
[1764119376289,0.002,2956.2,2956.1,4.7270336]
[1764119376580,0.002,2956.2,2956.1,4.9410336]
[1764119376881,0.002,2956.2,2956.1,8.52876352]
[1764119377085,0.002,2956.2,2956.1,8.49493517]
[1764119377964,0.002,2956.2,2956.1,8.59493517]
[1764119379588,0.002,2956.5,2956.4,4.57189968]
[1764119379889,0.002,2956.5,2956.4,4.8188246]
[1764119380082,0.002,2956.5,2956.4,5.0319246]
[1764119381273,0.002,2956.5,2956.4,8.41441682]
[1764119381475,0.002,2956.5,2956.4,8.3805919]
[1764119382168,0.002,2956.5,2956.4,8.2805919]
[1764119384098,0.002,2956.5,2956.4,8.3805919]
[1764119384300,1e-08,2956.8,2956.7,0.618604]
[1764119384491,1e-08,2956.8,2956.7,4.78499968]
[1764119384662,1e-08,2956.8,2956.7,4.68499968]
[1764119386806,1e-08,2956.8,2956.7,7.85404869]
[1764119386966,1e-08,2956.8,2956.7,8.06714869]
[1764119387917,1e-08,2956.8,2956.7,8.28024869]
[1764119388791,1e-08,2956.8,2956.7,8.06714869]
[1764119389096,1e-08,2956.8,2956.7,4.51324712]
[1764119389097,0.97050001,2956.8,2956.7,4.51324712]
[1764119389604,0.47580001,2956.8,2956.7,4.51324712]
[1764119389797,1e-08,2956.8,2956.7,4.51324712]
[1764119390698,1e-08,2956.8,2956.7,7.8528875]
[1764119391288,1e-08,2956.8,2956.7,8.0659875]
[1764119391805,1e-08,2956.8,2956.7,8.3790875]
[1764119391975,1e-08,2956.8,2956.7,8.1659875]
[1764119392168,1e-08,2956.8,2956.7,7.8528875]
[1764119392400,0.98890001,2956.8,2956.7,4.51324712]
[1764119392709,0.98890001,2956.8,2956.7,3.38214901]
[1764119392873,0.98890001,2956.8,2956.7,4.10774312]
[1764119393793,0.98890001,2956.8,2956.7,3.38214901]
[1764119394209,0.98890001,2956.8,2956.7,4.10774312]
[1764119396818,0.98890001,2956.8,2956.7,3.38214901]
[1764119398492,0.98890001,2956.8,2956.6,0.001]
[1764119398802,0.9889,2956.7,2956.6,0.001]
[1764119400389,4.32854038,2956.7,2956.6,0.001]
[1764119400799,4.32854038,2956.7,2956.4,0.001]
[1764119401006,13.19493838,2956.5,2956.1,0.001]
[1764119401323,0.477,2956.2,2956.1,0.001]
[1764119401688,0.971,2956.2,2956.1,0.001]
[1764119404103,4.35372106,2956.2,2955.3,3.38375104]
[1764119404292,3.83364038,2956.1,2955.3,3.38375104]
[1764119404491,0.6685,2955.4,2955.3,4.10934515]
[1764119404892,1.1625,2955.4,2955.3,4.10934515]
[1764119405695,0.477,2955.4,2955.3,4.10934515]
[1764119405905,0.214,2955.6,2955.3,7.49309637]
[1764119406211,0.708,2955.6,2955.3,7.49309637]
[1764119406695,0.494,2955.6,2955.4,0.72559411]
[1764119407096,0.477,2955.5,2955.4,0.72559411]
[1764119408020,0.971,2955.5,2955.4,4.10923084]
[1764119409324,0.971,2955.5,2955.4,3.38363673]
[1764119410093,0.971,2955.5,2955.2,0.72559411]
[1764119410288,0.477,2955.3,2955.2,0.72559411]
[1764119410703,0.971,2955.3,2955.2,0.72559411]
[1764119411323,0.971,2955.3,2955.1,6.76796046]
[1764119411525,0.971,2955.2,2955.1,3.38398023]
[1764119411995,0.971,2955.2,2955.0,0.001]
[1764119412194,0.971,2955.1,2955.0,0.001]
[1764119412418,0.971,2955.1,2954.8,0.001]
[1764119412618,3.33964038,2955.2,2954.8,0.001]
[1764119412619,0.6143,2954.9,2954.8,0.001]
[1764119413005,1.1083,2954.9,2954.8,0.001]
[1764119422364,1.3223,2954.9,2954.8,0.001]
[1764119424827,1.1777,2954.9,2954.8,0.001]
[1764119425462,0.214,2954.9,2954.8,0.001]
[1764119425664,0.214,2954.9,2954.8,1.15479411]
[1764119425965,0.4867,2955.6,2954.8,1.15479411]
[1764119426167,0.214,2955.3,2955.0,3.33964038]
[1764119426527,0.214,2955.3,2955.2,0.2141]
[1764119427055,0.6681,2955.3,2955.1,0.114]
[1764119427221,0.6681,2955.3,2955.0,6.7681895]
[1764119427222,0.4541,2955.2,2955.0,6.7681895]
[1764119427854,0.4541,2955.1,2955.0,4.10968886]
[1764119428059,0.214,2955.3,2955.0,3.38409475]
[1764119428241,0.214,2955.3,2955.0,6.7681895]
[1764119428638,0.7007,2955.3,2955.0,6.7681895]
[1764119429124,0.7007,2955.3,2954.9,7.49401265]
[1764119431463,0.7027,2955.3,2954.9,7.49401265]
[1764119433463,0.4867,2955.2,2954.9,7.49401265]
[1764119433964,0.4541,2955.0,2954.9,4.10980338]
[1764119434568,0.9408,2955.0,2954.9,4.10980338]
[1764119435434,0.9408,2955.0,2954.9,0.72559411]
[1764119436161,0.9408,2955.0,2954.9,4.10980338]
[1764119436363,0.4541,2955.0,2954.9,0.72559411]
[1764119436532,0.4541,2955.0,2954.9,4.10980338]
[1764119437065,0.9408,2955.0,2954.9,4.10980338]
[1764119446987,0.9408,2955.0,2954.9,3.38420927]
[1764119448455,0.4541,2955.0,2954.9,3.38420927]
[1764119448887,0.9408,2955.0,2954.9,3.38420927]
[1764119449080,0.9408,2955.0,2954.8,0.001]
[1764119449262,0.4541,2954.9,2954.8,0.001]
[1764119449585,1.1308,2954.9,2954.8,0.001]
[1764119449886,0.4541,2954.9,2954.8,0.001]
[1764119452691,0.9511,2954.9,2954.8,0.001]
[1764119457588,1.26557602,2954.9,2954.8,0.001]
[1764119457900,1.99011276,2954.9,2954.8,0.001]
[1764119458112,0.4574,2954.9,2954.8,0.001]
[1764119458604,0.9544,2954.9,2954.8,0.001]
[1764119459278,0.4574,2954.9,2954.8,0.001]
[1764119459909,0.002,2955.0,2954.8,0.001]
[1764119460412,0.4574,2954.9,2954.8,0.001]
[1764119460711,0.9544,2954.9,2954.8,0.001]
[1764119462328,1.26912741,2954.9,2954.8,0.001]
[1764119462497,1.9943183,2954.9,2954.8,0.001]
[1764119463054,1.67959089,2954.9,2954.8,0.001]
[1764119464110,1.99443101,2954.9,2954.8,0.001]
[1764119464709,1.95253101,2954.9,2954.8,0.001]
[1764119466432,2.16653101,2954.9,2954.8,0.001]
[1764119468528,2.16622921,2954.9,2954.8,0.001]
[1764119471931,0.002,2955.0,2954.8,0.257]
[1764119472236,0.214,2954.9,2954.8,0.001]
[1764119472609,0.214,2954.9,2954.8,0.257]
[1764119474106,0.214,2954.9,2954.8,0.001]
[1764119474540,0.214,2954.9,2954.8,0.257]
[1764119475255,0.214,2954.9,2954.8,3.64132381]
[1764119476865,0.6692,2954.9,2954.8,3.38532381]
[1764119477039,0.6692,2954.9,2954.8,0.001]
[1764119477357,1.3488,2954.9,2954.8,0.001]
[1764119478328,2.38926664,2954.9,2954.8,0.001]
[1764119479561,1.66369241,2954.9,2954.8,0.001]
[1764119480530,17.29493748,2954.9,2954.8,0.001]
[1764119480731,10.87824348,2954.9,2954.8,0.001]
[1764119481636,14.20439048,2954.9,2954.8,0.001]
[1764119482755,15.75820548,2954.9,2954.8,0.001]
[1764119482933,12.26861248,2954.9,2954.8,0.001]
[1764119483142,1.49598348,2954.9,2954.8,0.001]
[1764119483443,0.52889241,2954.9,2954.8,0.257]
[1764119483751,0.214,2954.9,2954.8,0.257]
[1764119484656,0.216,2954.9,2954.8,0.257]
[1764119485046,0.216,2954.9,2954.8,3.64132381]
[1764119485248,0.6873,2954.9,2954.8,0.001]
[1764119485443,1.00242854,2954.9,2954.8,0.001]
[1764119485748,1.47332854,2954.9,2954.8,0.001]
[1764119485943,1.00242854,2954.9,2954.8,0.001]
[1764119486144,1.47332854,2954.9,2954.8,0.001]
[1764119486767,2.1995219,2954.9,2954.8,0.001]
[1764119487160,2.19953301,2954.9,2954.8,0.001]
[1764119487776,1.72863301,2954.9,2954.8,0.001]
[1764119488780,2.19953301,2954.9,2954.8,0.001]
[1764119492373,1.47333965,2954.9,2954.8,0.001]
[1764119492675,1.00243965,2954.9,2954.8,0.001]
[1764119495251,1.47333965,2954.9,2954.8,0.001]
[1764119497079,1.47333544,2954.9,2954.8,0.001]
[1764119499494,2.1993628,2954.9,2954.8,0.001]
[1764119521251,1.0431628,2954.9,2954.8,0.257]
[1764119521532,1.2571628,2954.9,2954.8,0.257]
[1764119522200,0.53113544,2954.9,2954.8,0.513]
[1764119522539,0.216,2954.9,2954.8,0.513]
[1764119522830,0.002,2954.9,2954.8,4.58456683]
[1764119523044,0.002,2954.9,2954.8,1.23859411]
[1764119523240,0.002,2954.9,2954.8,7.96889064]
[1764119523444,0.002,2954.9,2954.8,8.37439464]
[1764119523734,0.002,2955.0,2954.9,1.13109811]
[1764119523907,0.002,2955.0,2954.9,1.64309811]
[1764119525322,0.002,2955.2,2954.9,8.41151665]
[1764119525518,0.002,2955.2,2955.1,4.84707083]
[1764119525731,0.002,2955.2,2955.1,5.10307083]
[1764119526039,0.72747036,2956.4,2955.8,0.256]
[1764119526040,0.002,2956.4,2955.8,0.256]
[1764119526241,1e-08,2956.8,2956.4,0.405504]
[1764119526441,0.002,2957.4,2957.0,0.405504]
[1764119526642,0.216,2958.0,2957.3,1.37269811]
[1764119526813,0.002,2958.0,2957.9,4.31316683]
[1764119527005,0.002,2958.0,2957.9,4.96027083]
[1764119527207,0.002,2958.0,2957.9,8.34104773]
[1764119528541,0.002,2958.0,2957.9,4.99507501]
[1764119529143,0.002,2958.0,2957.9,4.58957101]
[1764119533055,0.002,2958.0,2957.9,4.99507501]
[1764119533935,0.002,2958.0,2957.9,4.34797101]
[1764119534144,0.002,2958.0,2957.9,4.56197101]
[1764119534659,0.002,2958.0,2957.9,4.80357101]
[1764119534849,0.4605,2958.0,2957.6,3.38109614]
[1764119535049,0.002,2958.0,2957.6,6.76221596]
[1764119535238,0.002,2958.0,2957.9,0.2416]
[1764119535637,0.002,2958.0,2957.9,4.34797101]
[1764119537043,0.002,2958.0,2957.9,4.10637101]
[1764119537247,0.4605,2958.0,2957.9,4.10637101]
[1764119538444,0.002,2958.0,2957.9,4.58957101]
[1764119541157,0.002,2958.0,2957.9,4.99507501]
[1764119543041,0.002,2958.0,2957.9,5.02888277]
[1764119543578,0.002,2958.3,2958.2,0.405504]
[1764119543779,0.002,2958.3,2958.2,6.24046447]
[1764119543982,0.002,2958.3,2958.2,9.58709417]
[1764119544501,0.3989,2960.0,2958.2,23.10883033]
[1764119544651,1.2006525,2961.4,2958.2,23.10883033]
[1764119544652,0.4892,2960.2,2958.8,1.23109811]
[1764119544955,0.4892,2960.2,2959.0,0.405504]
[1764119545277,0.4892,2960.2,2959.1,0.214]
[1764119545581,0.4892,2960.2,2959.1,0.5696]
[1764119546038,0.4892,2960.2,2959.3,0.72559411]
[1764119547124,0.1988,2960.4,2959.3,0.96719411]
[1764119547428,0.4892,2960.3,2959.4,0.2416]
[1764119547585,0.4892,2960.3,2959.3,0.93959411]
[1764119548001,0.4892,2960.3,2959.5,0.72559411]
[1764119548538,0.4733,2959.6,2959.4,3.37906332]
[1764119548825,0.4733,2959.5,2959.4,3.37906332]
[1764119549337,0.4733,2959.5,2959.4,4.10465743]
[1764119549625,0.214,2960.2,2959.4,4.10465743]
[1764119549626,0.4892,2960.1,2959.5,0.72559411]
[1764119549934,0.4733,2959.6,2959.5,0.72559411]
[1764119550089,0.4733,2959.6,2959.5,4.10454325]
[1764119550286,0.9625,2959.6,2959.5,0.72559411]
[1764119550708,0.9625,2959.6,2958.7,3.37986277]
[1764119550926,0.9625,2959.5,2958.8,0.72559411]
[1764119551329,0.4892,2959.4,2958.8,0.72559411]
[1764119552019,0.4892,2959.4,2959.0,0.72559411]
[1764119552721,0.4733,2959.1,2959.0,0.72559411]
[1764119554227,0.9625,2959.1,2959.0,4.10511421]
[1764119554826,0.9625,2959.1,2958.4,3.38017309]
[1764119555027,0.9625,2959.0,2958.3,10.14095931]
[1764119555530,1.00286571,2958.9,2958.4,0.72559411]
[1764119555826,1.00286571,2958.9,2958.3,6.76063954]
[1764119555827,0.4733,2958.4,2958.3,3.38031977]
[1764119556013,0.4733,2958.4,2958.3,4.10591388]
[1764119556726,0.9625,2958.4,2958.3,4.10591388]
[1764119557042,0.688,2958.9,2958.4,0.72559411]
[1764119557195,1.52993592,2958.8,2958.4,0.72559411]
[1764119557395,0.72575453,2958.7,2958.4,0.72559411]
[1764119557616,0.4892,2958.7,2958.4,0.72559411]
[1764119557813,0.4733,2958.5,2958.4,0.72559411]
[1764119558120,0.4733,2958.5,2957.9,0.214]
[1764119558121,0.4733,2958.5,2957.8,3.38081631]
[1764119558301,0.9625,2958.4,2957.8,3.38081631]
[1764119558507,0.9625,2958.4,2957.9,0.72559411]
[1764119558730,0.4892,2958.3,2957.9,0.72559411]
[1764119559129,0.4733,2958.0,2957.1,0.001]
[1764119559337,0.5635,2957.5,2957.1,0.001]
[1764119559635,0.5635,2957.5,2957.4,4.10794259]
[1764119560438,0.5635,2957.5,2957.4,0.72659411]
[1764119560608,0.5635,2957.5,2957.4,4.10794259]
[1764119560829,1.77733425,2957.5,2957.4,0.001]
[1764119561031,2.98575268,2957.5,2957.4,0.001]
[1764119561539,11.30009783,2957.5,2957.4,0.001]
[1764119561739,4.33646202,2957.3,2957.1,0.001]
[1764119561943,1.72624414,2957.2,2957.1,0.001]
[1764119562124,5.5970213,2957.2,2957.1,0.001]
[1764119562324,6.50056253,2957.2,2957.1,0.001]
[1764119562723,20.0003603,2957.2,2957.1,0.001]
[1764119563075,18.2786143,2957.2,2957.1,0.001]
[1764119563355,8.80669287,2957.2,2957.1,0.001]
[1764119563523,7.9039153,2957.2,2957.1,0.001]
[1764119563723,16.43789241,2957.2,2957.1,0.001]
[1764119564025,17.04293891,2957.2,2957.1,0.001]
[1764119564646,12.84741991,2957.2,2957.1,0.001]
[1764119564950,16.67932691,2957.2,2957.1,0.001]
[1764119565249,15.47867441,2957.2,2957.1,0.001]
[1764119565460,11.19447741,2957.2,2957.1,0.001]
[1764119565842,13.25747841,2957.2,2957.1,0.001]
[1764119566044,7.9955743,2957.2,2957.1,0.001]
[1764119566868,15.4080263,2957.2,2957.1,0.001]
[1764119567048,14.5095293,2957.2,2957.1,0.001]
[1764119567559,14.2709133,2957.2,2957.1,0.001]
[1764119567860,15.1406103,2957.2,2957.1,0.001]
[1764119568034,13.13855008,2957.2,2957.1,0.001]
[1764119568331,4.684821,2957.2,2957.1,0.001]
[1764119568537,1.1765,2957.2,2957.1,0.001]
[1764119569176,4.77472,2957.2,2957.1,0.001]
[1764119569529,3.86272,2957.2,2957.1,0.001]
[1764119569742,6.72229716,2957.2,2957.1,0.001]
[1764119570359,9.73701216,2957.2,2957.1,0.001]
[1764119570564,7.04056216,2957.2,2957.1,0.001]
[1764119571061,7.49013616,2957.2,2957.1,0.001]
[1764119571261,9.36731616,2957.2,2957.1,0.001]
[1764119572363,11.58868916,2957.2,2957.1,0.001]
[1764119573546,14.52364216,2957.2,2957.1,0.001]
[1764119574232,13.52364216,2957.2,2957.1,0.001]
[1764119574431,4.55807716,2957.2,2957.1,0.001]
[1764119574740,13.52364216,2957.2,2957.1,0.001]
[1764119575338,13.06244216,2957.2,2957.1,0.001]
[1764119575560,12.75950416,2957.2,2957.1,0.001]
[1764119576573,12.97421416,2957.2,2957.1,0.001]
[1764119577235,12.71829516,2957.2,2957.1,0.001]
[1764119577579,23.91475927,2957.2,2957.1,0.001]
[1764119578036,9.16605127,2957.2,2957.1,0.001]
[1764119578438,1.1765,2957.2,2957.1,0.001]
[1764119579168,11.10655327,2957.2,2957.1,0.001]
[1764119579387,24.08768475,2957.2,2957.1,0.001]
[1764119579871,3.755694,2957.2,2957.1,0.001]
[1764119580084,7.82907116,2957.2,2957.1,0.001]
[1764119580378,19.39479716,2957.2,2957.1,0.001]
[1764119580534,9.82461516,2957.2,2957.1,0.001]
[1764119580741,7.88615716,2957.2,2957.1,0.001]
[1764119580938,7.65227016,2957.2,2957.1,0.001]
[1764119581175,4.54667716,2957.2,2957.1,0.001]
[1764119582072,4.011705,2957.2,2957.1,0.001]
[1764119582369,3.59557716,2957.2,2957.1,0.001]
[1764119582873,7.31037216,2957.2,2957.1,0.001]
[1764119583171,6.82287216,2957.2,2957.1,0.001]
[1764119583402,12.47192516,2957.2,2957.1,0.001]
[1764119583598,3.784417,2957.2,2957.1,0.001]
[1764119583803,1.1603,2957.2,2957.1,0.001]
[1764119584005,4.54187716,2957.2,2957.1,0.001]
[1764119584410,4.85594138,2957.2,2957.1,0.001]
[1764119584815,1.47436422,2957.2,2957.1,0.001]
[1764119584974,4.54187716,2957.2,2957.1,0.001]
[1764119585301,5.26572893,2957.2,2957.1,0.001]
[1764119585500,5.58005738,2957.2,2957.1,0.001]
[1764119586306,8.95950538,2957.2,2957.1,0.001]
[1764119586972,5.58005738,2957.2,2957.1,0.001]
[1764119587371,9.60325038,2957.2,2957.1,0.001]
[1764119587775,5.58005738,2957.2,2957.1,0.001]
[1764119588077,6.48082048,2957.2,2957.1,0.001]
[1764119589314,6.78070988,2957.2,2957.1,0.001]
[1764119589809,15.97295588,2957.2,2957.1,0.001]
[1764119589980,15.51175588,2957.2,2957.1,0.001]
[1764119590180,14.31110338,2957.2,2957.1,0.001]
[1764119590792,8.36487238,2957.2,2957.1,0.001]
[1764119591028,5.58005738,2957.2,2957.1,0.001]
[1764119591210,7.38103614,2957.2,2957.1,0.001]
[1764119591408,7.38103614,2957.2,2957.0,0.001]
[1764119591606,1.49698022,2957.1,2957.0,0.001]
[1764119592344,2.25281405,2957.1,2957.0,0.001]
[1764119592549,2.71161405,2957.1,2957.0,0.001]
[1764119592746,4.83064605,2957.1,2957.0,0.001]
[1764119592948,4.10351222,2957.1,2957.0,0.001]
[1764119593653,7.48520374,2957.1,2957.0,0.001]
[1764119594639,4.10351222,2957.1,2957.0,0.001]
[1764119594849,4.10351222,2957.1,2957.0,0.2436]
[1764119594850,1.03818022,2957.1,2957.0,0.2436]
[1764119595036,2.25285809,2957.1,2957.0,0.2436]
[1764119595548,1.03818022,2957.1,2957.0,0.2436]
[1764119595846,1.03818022,2957.1,2957.0,0.001]
[1764119596054,5.00310522,2957.1,2957.0,0.001]